bitfinex/quotes_ETHUSD_20251024
["timestamp","ask_amount","ask_price","bid_price","bid_amount"]
[1761310857511,2.52267275,3964.4,3963.5,2.5229708]
[1761310857708,1.5552,3964.2,3963.6,5.8479517]
[1761310857907,2.52268201,3964.4,3963.7,3.325]
[1761310858151,2.52257706,3964.2,3963.7,3.325]
[1761310858335,0.1264,3963.8,3963.7,3.325]
[1761310861840,0.1264,3963.8,3963.7,3.323]
[1761310863637,0.1264,3963.8,3963.5,2.52301281]
[1761310863841,2.52264504,3964.1,3963.6,3.323]
[1761310864043,2.95990206,3964.2,3963.6,3.323]
[1761310864240,0.1264,3963.7,3963.6,3.323]
[1761310866649,0.1264,3963.7,3963.6,5.84595892]
[1761310866858,0.1264,3963.7,3963.6,3.323]
[1761310867053,0.1264,3963.7,3963.1,0.1304]
[1761310867293,0.1264,3963.7,3963.3,2.52308882]
[1761310867455,0.001,3963.8,3963.4,2.52306848]
[1761310867660,0.1264,3963.5,3963.4,2.52306848]
[1761310867857,0.1264,3963.5,3963.2,5.84515001]
[1761310868184,0.001,3963.8,3963.7,2.52289527]
[1761310868390,0.1274,3963.8,3963.7,3.322]
[1761310868888,0.1274,3963.8,3963.7,6.20009527]
[1761310870482,0.001,3963.8,3963.7,6.20009527]
[1761310871496,0.001,3963.8,3963.7,2.52289527]
[1761310871812,2.52300178,3963.6,3963.5,3.321]
[1761310871992,3.10748605,3963.6,3963.5,3.321]
[1761310872191,3.67038605,3963.6,3963.5,3.321]
[1761310873057,1.14818427,3963.6,3963.5,3.321]
[1761310873260,0.1264,3963.6,3963.5,3.321]
[1761310874161,0.5637,3963.6,3963.5,3.321]
[1761310874608,0.1264,3963.6,3963.5,5.84402258]
[1761310877795,0.001,3963.8,3963.7,2.52289527]
[1761310877974,0.1274,3963.8,3963.7,2.52289527]
[1761310878175,0.1274,3963.8,3963.7,3.319]
[1761310878726,0.001,3963.8,3963.7,5.84189527]
[1761310878902,0.1274,3963.8,3963.7,5.84189527]
[1761310879643,0.799,3963.8,3963.2,0.1264]
[1761310879941,0.6726,3963.8,3963.5,2.52301383]
[1761310880143,0.6726,3963.8,3963.6,5.84194773]
[1761310880368,0.001,3963.8,3963.6,5.84194773]
[1761310880642,0.1264,3963.7,3963.6,5.84194773]
[1761310881402,0.1264,3963.7,3963.6,7.39714773]
[1761310882139,0.1264,3963.7,3963.6,4.8742]
[1761310882846,0.1264,3963.7,3963.6,3.319]
[1761310883132,0.5637,3963.7,3963.6,3.318]
[1761310883902,0.1264,3963.7,3963.6,3.318]
[1761310885020,0.1274,3963.7,3963.6,3.318]
[1761310886514,0.1274,3963.7,3963.6,3.317]
[1761310886773,0.4383,3963.7,3963.3,3.317]
[1761310887050,0.4373,3963.6,3963.3,3.317]
[1761310887429,0.001,3963.7,3963.3,3.317]
[1761310887966,2.96121517,3963.7,3963.3,3.317]
[1761310888150,0.4383,3963.7,3963.3,3.317]
[1761310888315,0.4373,3963.6,3963.3,3.317]
[1761310889118,2.96029366,3963.6,3963.3,3.317]
[1761310889728,0.001,3963.7,3963.3,3.317]
[1761310889729,3.54624613,3963.5,3963.3,3.317]
[1761310889937,0.001,3963.7,3963.3,3.317]
[1761310890252,0.4747,3963.6,3963.0,0.002]
[1761310890421,0.4747,3963.6,3963.1,3.316]
[1761310890752,2.52302681,3963.5,3963.2,3.316]
[1761310890920,0.4747,3963.6,3963.2,3.316]
[1761310890921,2.99768274,3963.6,3963.2,3.316]
[1761310891121,0.4747,3963.5,3963.2,3.316]
[1761310891319,0.4747,3963.5,3963.0,0.002]
[1761310891320,1.02695304,3963.5,3963.0,0.002]
[1761310891658,2.52316343,3963.3,3963.1,3.316]
[1761310892253,0.4747,3963.2,3963.1,3.316]
[1761310892963,0.4747,3963.2,3963.0,3.317]
[1761310893164,0.001,3963.7,3963.1,0.4856]
[1761310893454,0.001,3963.7,3963.3,2.52309339]
[1761310893679,0.001,3963.7,3963.5,2.52301135]
[1761310893966,0.001,3963.7,3963.4,5.83806889]
[1761310894331,0.001,3963.7,3963.4,3.315]
[1761310895856,0.001,3963.7,3963.6,2.52295892]
[1761310896249,0.0002,3963.7,3963.6,2.52295892]
[1761310896766,0.1266,3963.7,3963.6,2.52295892]
[1761310897565,0.1266,3963.7,3963.6,3.314]
[1761310897772,0.1266,3963.7,3963.6,5.83695892]
[1761310898562,0.1266,3963.7,3963.6,6.67296299]
[1761310899473,0.1266,3963.7,3963.6,5.83695892]
[1761310899768,0.1266,3963.7,3963.6,6.19215892]
[1761310899968,0.1266,3963.7,3963.6,5.83695892]
[1761310901832,0.1266,3963.7,3963.6,6.19215892]
[1761310903968,0.1266,3963.7,3963.6,5.83695892]
[1761310904270,0.1266,3963.7,3963.6,6.67295896]
[1761310905362,0.1266,3963.7,3963.6,3.314]
[1761310905558,0.1266,3963.7,3963.6,5.83695892]
[1761310906371,0.6013,3963.7,3963.6,3.312]
[1761310907152,0.1266,3963.7,3963.6,3.312]
[1761310907371,0.1266,3963.7,3963.6,5.83495892]
[1761310910777,0.1266,3963.7,3963.6,3.312]
[1761310911248,0.1266,3963.7,3963.6,5.83495892]
[1761310912500,0.1266,3963.7,3963.6,6.19015892]
[1761310912792,0.1266,3963.7,3963.6,5.83495892]
[1761310914490,0.6013,3963.7,3963.4,2.52306219]
[1761310914650,0.0002,3963.7,3963.5,3.31]
[1761310914856,0.1264,3963.6,3963.5,3.31]
[1761310915394,0.6011,3963.6,3963.0,0.002]
[1761310915592,0.4747,3963.6,3963.1,3.31]
[1761310915795,0.4747,3963.6,3963.2,2.52319839]
[1761310916356,0.1264,3963.3,3963.2,2.52319839]
[1761310916585,0.1264,3963.3,3963.2,5.83219839]
[1761310917778,0.1264,3963.3,3963.2,6.66795187]
[1761310918263,0.1264,3963.3,3963.2,5.83219839]
[1761310918470,3.73575178,3963.3,3963.0,0.002]
[1761310918795,0.1264,3963.1,3963.0,0.002]
[1761310918993,0.5581,3963.1,3963.0,3.311]
[1761310920292,0.1256,3963.1,3963.0,3.311]
[1761310920495,0.1264,3963.1,3963.0,3.6423]
[1761310920803,0.1264,3963.1,3963.0,6.52083029]
[1761310921803,0.1264,3963.1,3963.0,3.311]
[1761310922685,0.1264,3963.1,3963.0,0.002]
[1761310922892,0.1264,3963.1,3963.0,5.8333409]
[1761310925017,0.1264,3963.1,3963.0,0.002]
[1761310925199,0.5917,3963.1,3963.0,3.31]
[1761310927232,0.1264,3963.1,3963.0,3.31]
[1761310927712,0.5917,3963.1,3963.0,3.31]
[1761310928013,3.11497723,3963.1,3963.0,0.002]
[1761310928189,3.99655629,3963.1,3963.0,0.002]
[1761310928513,7.17420807,3963.1,3963.0,0.002]
[1761310930275,7.68108807,3963.1,3963.0,0.002]
[1761310930677,9.23628807,3963.1,3963.0,0.002]
[1761310931422,3.03028457,3962.9,3962.8,0.002]
[1761310931738,3.03028457,3962.9,3960.3,0.003]
[1761310931739,3.17765178,3961.1,3960.3,0.003]
[1761310931889,2.52466938,3961.0,3960.3,0.003]
[1761310932091,0.1264,3960.4,3960.3,0.003]
[1761310934300,0.1264,3960.4,3960.2,3.305]
[1761310934495,0.5917,3960.3,3960.2,3.305]
[1761310936090,0.1264,3960.3,3960.2,3.305]
[1761310940163,0.5917,3960.3,3960.2,3.305]
[1761310940469,0.1264,3960.3,3960.2,3.305]
[1761310941947,0.5917,3960.3,3960.2,3.305]
[1761310942167,0.90336339,3960.3,3960.2,3.305]
[1761310942335,0.90336339,3960.3,3960.1,0.002]
[1761310942541,0.1264,3960.3,3960.1,0.002]
[1761310942734,0.4653,3960.2,3960.1,0.002]
[1761310943457,3.49730499,3960.2,3960.1,0.002]
[1761310944036,14.70943704,3960.2,3960.1,0.002]
[1761310944239,14.70863704,3960.2,3960.1,0.002]
[1761310944549,16.76240191,3960.2,3960.1,0.002]
[1761310945152,0.2308,3959.9,3956.9,0.356]
[1761310945367,0.50688,3958.7,3957.0,1.945]
[1761310945660,0.50688,3958.7,3957.6,2.52677548]
[1761310945834,0.2308,3958.6,3957.7,2.55198357]
[1761310946028,0.2308,3958.6,3957.8,2.52663721]
[1761310946220,0.2308,3958.6,3957.6,2.326]
[1761310946455,0.2308,3958.6,3957.7,0.356]
[1761310946762,0.2308,3958.6,3956.6,0.28950913]
[1761310946962,0.2308,3958.6,3957.1,0.356]
[1761310947129,0.4653,3958.5,3957.3,2.52697546]
[1761310947333,0.5064819,3958.6,3957.2,0.44383644]
[1761310947334,0.2308,3958.6,3957.5,1.5552]
[1761310947555,0.2308,3958.6,3957.8,2.52659242]
[1761310947763,0.2308,3958.6,3957.5,1.5552]
[1761310947764,0.6961,3958.6,3957.7,2.52671759]
[1761310947958,0.6961,3958.6,3957.9,2.52657472]
[1761310948149,1.27092236,3958.6,3957.9,2.52657472]
[1761310948662,0.80562236,3958.6,3957.8,3.304]
[1761310948866,2.52629347,3958.4,3957.8,3.304]
[1761310949162,0.50688,3958.3,3957.4,2.5268634]
[1761310949466,2.52652854,3958.0,3957.0,3.304]
[1761310949630,2.52652854,3958.0,3957.3,2.52696547]
[1761310949827,0.2151,3957.9,3957.3,2.52696547]
[1761310950029,0.4701,3958.9,3957.4,0.356]
[1761310950264,6.53108933,3958.6,3957.8,2.52664894]
[1761310950442,4.0049,3958.6,3957.7,5.83068744]
[1761310950641,6.53105673,3958.6,3957.9,2.52655713]
[1761310950966,6.53105673,3958.6,3957.7,3.304]
[1761310950967,2.99630977,3958.5,3957.7,3.304]
[1761310951144,2.99630977,3958.5,3957.8,2.52665622]
[1761310951464,0.4701,3958.4,3957.8,2.52665622]
[1761310951666,0.4701,3958.4,3957.9,2.52657935]
[1761310951854,0.3227058,3958.3,3956.1,2.5276985]
[1761310952032,2.99643823,3958.3,3957.1,3.304]
[1761310952235,0.4701,3958.3,3957.1,3.304]
[1761310952428,0.50688,3958.1,3957.1,3.304]
[1761310952735,0.4701,3958.2,3957.1,3.303]
[1761310952736,2.52683408,3957.6,3957.1,3.303]
[1761310952930,2.83020549,3957.6,3956.7,1.6856]
[1761310953161,0.2151,3957.5,3957.0,3.303]
[1761310953362,0.2151,3957.5,3957.2,2.52702033]
[1761310953667,0.1264,3957.1,3956.9,3.303]
[1761310954081,0.1264,3957.1,3957.0,3.303]
[1761310954377,0.1264,3957.1,3956.8,2.52724715]
[1761310954584,0.4701,3957.4,3957.0,3.303]
[1761310954753,0.1264,3957.1,3957.0,3.303]
[1761310955258,0.5965,3957.1,3956.0,0.1125]
[1761310955472,0.4701,3957.1,3956.1,3.303]
[1761310955677,0.4701,3957.1,3956.4,2.52755022]
[1761310955979,0.1264,3956.5,3956.3,2.52757285]
[1761310956189,0.4701,3957.1,3955.6,0.356]
[1761310956343,0.4701,3957.0,3955.7,0.539]
[1761310956545,0.1264,3955.8,3955.7,3.42299298]
[1761310956857,0.1264,3955.8,3955.7,5.83099757]
[1761310957059,0.1264,3955.8,3955.7,2.52799757]
[1761310957255,0.1264,3955.8,3955.7,5.78099757]
[1761310957522,0.1264,3955.8,3955.7,2.83399757]
[1761310957652,0.1264,3955.8,3955.7,6.67320987]
[1761310958251,1.7703,3957.7,3955.7,6.67320987]
[1761310958252,0.2151,3957.7,3955.8,1.5552]
[1761310958464,0.1264,3956.4,3955.9,0.356]
[1761310958647,2.99696213,3957.5,3956.5,2.52744462]
[1761310958851,2.52705046,3957.2,3956.6,3.303]
[1761310959367,3.3182204,3957.4,3956.6,5.83042253]
[1761310959368,0.1264,3956.7,3956.6,5.83042253]
[1761310959568,2.52679513,3957.6,3956.6,5.83041852]
[1761310959767,2.52679513,3957.6,3956.9,2.52720085]
[1761310959981,3.21192952,3957.7,3956.9,2.52720085]
[1761310960182,0.6852,3957.7,3956.6,5.83042095]
[1761310960483,0.6852,3957.7,3956.6,5.83041189]
[1761310960484,2.99688409,3957.6,3956.6,5.83041189]
[1761310960687,0.32119841,3957.5,3956.6,5.83041189]
[1761310960901,2.52697546,3957.3,3956.1,0.1125]
[1761310961205,2.52697546,3957.3,3956.2,3.303]
[1761310961206,0.4701,3957.2,3956.2,3.303]
[1761310961412,0.4701,3957.2,3956.3,3.303]
[1761310961413,2.52737119,3956.7,3956.3,3.303]
[1761310961590,0.72283712,3956.6,3956.2,3.303]
[1761310961896,3.25026442,3956.6,3956.2,3.303]
[1761310962101,0.4701,3956.5,3956.2,3.303]
[1761310962300,0.25273712,3956.6,3956.2,3.303]
[1761310962817,0.79129841,3957.5,3956.3,0.1125]
[1761310963001,0.2151,3957.7,3956.3,2.33320913]
[1761310963207,0.2151,3957.7,3956.8,2.52723197]
[1761310963502,0.6852,3957.7,3957.1,2.52709598]
[1761310963676,0.6852,3957.7,3957.1,2.5270536]
[1761310963879,0.53628166,3957.7,3957.0,2.52715212]
[1761310964078,0.53628166,3957.7,3956.7,3.302]
[1761310964281,0.4701,3958.2,3956.7,5.82932785]
[1761310964483,0.4701,3958.1,3956.8,0.356]
[1761310964878,0.4701,3958.1,3957.3,2.52695043]
[1761310965099,1.786,3958.6,3957.7,2.52665912]
[1761310965302,1.5552,3958.4,3957.4,3.302]
[1761310965512,2.75200925,3958.3,3956.6,0.356]
[1761310965693,0.4701,3958.2,3957.4,2.52690246]
[1761310965878,2.52647244,3958.1,3957.1,2.52706208]
[1761310966078,0.4701,3958.2,3957.2,3.4324]
[1761310966317,0.97698,3958.5,3957.5,2.5268445]
[1761310966489,0.641566,3958.5,3957.6,2.52675126]
[1761310966685,0.97698,3958.5,3957.2,3.7884]
[1761310966907,0.97698,3958.5,3957.8,2.52659718]
[1761310967119,0.2308,3958.6,3957.8,5.82863598]
[1761310967410,0.2151,3958.8,3957.8,3.302]
[1761310967584,2.52614405,3958.7,3957.8,5.82859431]
[1761310967906,0.4701,3958.7,3957.8,3.302]
[1761310968111,0.4693,3958.7,3958.0,2.52651984]
[1761310968411,0.4693,3958.7,3957.8,5.82865091]
[1761310968612,0.4693,3958.7,3957.9,2.52658967]
[1761310968910,0.4693,3958.7,3958.0,2.52652854]
[1761310969282,2.99543316,3958.7,3958.0,2.52652854]
[1761310969594,0.1264,3958.1,3957.2,0.1304]
[1761310969796,0.50688,3958.6,3957.2,0.1304]
[1761310970017,2.52632953,3958.4,3957.6,2.52672391]
[1761310970177,0.72198,3958.8,3957.3,1.8428]
[1761310970178,0.1264,3957.7,3957.3,1.8428]
[1761310970521,2.52616017,3958.6,3957.4,0.3568]
[1761310970688,0.1264,3957.7,3957.6,2.5267839]
[1761310970891,0.4701,3959.6,3958.7,2.52606981]
[1761310971214,0.7009,3959.9,3958.8,3.4149]
[1761310971387,0.4701,3959.6,3958.8,3.301]
[1761310971589,0.2151,3958.9,3958.1,3.301]
[1761310971790,0.2151,3958.9,3958.2,3.301]
[1761310971791,2.74106426,3958.9,3958.2,3.301]
[1761310972712,2.74093745,3959.1,3958.4,2.52627318]
[1761310972886,0.2151,3959.1,3958.5,2.52615928]
[1761310973088,0.2151,3959.1,3958.4,2.52622708]
[1761310973277,2.52553165,3959.6,3958.4,0.3568]
[1761310973477,2.52555227,3959.6,3958.7,2.52603726]
[1761310973705,0.79271536,3959.8,3958.8,3.3]
[1761310974078,0.4701,3959.8,3958.8,3.3]
[1761310974511,0.2308,3959.9,3959.3,2.52564937]
[1761310974715,0.2308,3959.9,3958.4,0.62981095]
[1761310975017,2.52572082,3959.3,3958.6,2.52608666]
[1761310975312,2.52572082,3959.3,3958.6,2.5261366]
[1761310975483,2.99582082,3959.3,3958.6,2.5261366]
[1761310975683,2.52578191,3959.2,3958.5,2.52619228]
[1761310976004,2.52578191,3959.2,3958.6,3.3]
[1761310976200,2.99580333,3959.3,3958.6,5.82614179]
[1761310976429,2.99580333,3959.3,3958.6,2.52614179]
[1761310976629,2.99580333,3959.3,3958.7,3.299]
[1761310977003,2.5257716,3959.2,3958.7,3.299]
[1761310977443,2.9748716,3959.2,3958.7,3.299]
[1761310977730,0.4491,3959.2,3958.7,3.299]
[1761310978241,2.97487658,3959.2,3958.6,2.52613619]
[1761310978413,0.4491,3959.2,3958.8,3.299]
[1761310978617,0.50688,3959.7,3958.8,3.299]
[1761310978618,3.27243825,3959.1,3958.8,3.299]
[1761310978920,0.29748766,3959.1,3958.8,3.299]
[1761310979238,0.4491,3959.6,3958.8,3.299]
[1761310979401,2.52561482,3959.5,3958.8,3.299]
[1761310979608,0.444,3959.7,3958.8,3.299]
[1761310979831,2.5256811,3959.4,3958.8,3.299]
[1761310980058,2.5255752,3959.5,3958.8,5.82500914]
[1761310980207,0.54950196,3959.4,3958.8,5.82500914]
[1761310980407,3.07515005,3959.4,3958.8,5.82500914]
[1761310980626,2.52570047,3959.3,3958.8,3.299]
[1761310980833,0.1264,3958.9,3958.8,3.299]
[1761310981339,0.1264,3958.9,3958.1,0.1139]
[1761310981340,0.7878,3958.9,3958.1,0.1139]
[1761310981548,0.1264,3958.3,3958.1,0.1139]
[1761310981720,0.1264,3958.3,3958.2,5.82440088]
[1761310981926,0.1264,3958.3,3958.2,3.298]
[1761310982605,0.1264,3958.3,3957.6,2.5267839]
[1761310982808,0.1264,3958.3,3957.9,2.52655224]
[1761310983029,0.1264,3957.7,3957.3,0.3568]
[1761310983539,0.1264,3957.7,3957.6,2.52674042]
[1761310983915,0.1264,3957.7,3957.4,2.52687298]
[1761310984120,0.2174,3958.9,3957.5,3.298]
[1761310984121,0.2174,3957.9,3957.5,3.298]
[1761310984544,0.1264,3957.6,3957.5,3.298]
[1761310985421,3.09723102,3957.6,3956.8,2.52725531]
[1761310985620,0.1264,3957.1,3956.9,3.297]
[1761310985951,0.1264,3957.1,3956.3,0.1125]
[1761310985952,0.1264,3957.0,3956.3,0.1125]
[1761310986149,2.97095025,3957.4,3956.4,5.82449619]
[1761310986352,0.2174,3957.9,3956.4,1.23894548]
[1761310986353,0.50688,3957.8,3956.4,1.23894548]
[1761310986567,0.2174,3959.2,3956.4,1.23894548]
[1761310986568,0.2174,3959.2,3957.8,0.1304]
[1761310986744,0.2174,3958.8,3958.2,2.52637276]
[1761310986921,0.2174,3958.8,3957.9,2.136]
[1761310987251,2.74317583,3959.2,3958.5,2.52620178]
[1761310987555,2.74317583,3959.2,3958.5,5.82320178]
[1761310987556,0.31871758,3959.1,3958.5,5.82320178]
[1761310987921,2.84455485,3959.1,3958.5,3.297]
[1761310988136,3.28855485,3959.1,3958.5,3.297]
[1761310988339,0.76271758,3959.1,3958.5,3.297]
[1761310988623,0.76271758,3959.1,3958.5,5.82317958]
[1761310988837,0.444,3959.1,3958.5,5.82317958]
[1761310989174,0.2174,3959.2,3958.5,5.82319228]
[1761310989370,2.74317637,3959.2,3958.5,3.297]
[1761310989569,0.6614,3959.2,3958.5,3.297]
[1761310990139,3.18717127,3959.2,3958.5,5.82318604]
[1761310990972,0.445,3959.5,3958.5,3.297]
[1761310991173,0.001,3959.5,3958.9,2.52590246]
[1761310991384,0.001,3959.5,3959.0,3.297]
[1761310991584,0.001,3959.5,3959.2,2.52575922]
[1761310991752,0.001,3959.5,3959.1,2.52582657]
[1761310991952,0.001,3959.5,3959.4,2.52563519]
[1761310992158,0.001,3959.5,3959.4,2.55089154]
[1761310992354,0.0002,3959.5,3959.4,2.88243519]
[1761310992660,0.0002,3959.5,3959.4,4.43763519]
[1761310992856,0.0002,3959.5,3959.4,7.73363519]
[1761310993054,0.0002,3959.5,3959.4,8.81780325]
[1761310994593,0.0002,3959.5,3959.4,5.52180325]
[1761310994796,0.0002,3959.5,3959.4,8.81780325]
[1761310994965,0.0002,3959.5,3959.4,5.52180325]
[1761310995156,0.0002,3959.5,3959.4,8.81780325]
[1761310995352,0.0002,3959.5,3959.4,8.81680325]
[1761310996085,0.0002,3959.5,3959.4,8.94320325]
[1761310996388,0.0002,3959.5,3959.4,7.37583519]
[1761310998485,0.0002,3959.5,3959.4,7.73263519]
[1761310999101,0.0002,3959.5,3959.4,7.85903519]
[1761310999286,0.0002,3959.5,3959.4,8.36591519]
[1761310999490,0.0002,3959.5,3959.4,8.49231519]
[1761310999793,0.0002,3959.5,3959.4,10.86715347]
[1761311000493,0.0002,3959.5,3959.4,11.54019442]
[1761311000895,0.0002,3959.5,3959.4,10.86715347]
[1761311001097,0.0002,3959.5,3959.4,11.53977429]
[1761311001305,0.0002,3959.5,3959.4,11.1766626]
[1761311001694,0.0002,3959.5,3959.4,13.43144289]
[1761311002566,0.0002,3959.5,3959.4,12.75915347]
[1761311003409,0.0002,3959.5,3959.4,13.0686626]
[1761311003613,0.0002,3959.5,3959.4,12.75915347]
[1761311003794,0.0002,3959.5,3959.4,12.75815347]
[1761311004367,0.0002,3959.5,3959.4,13.4296727]
[1761311004909,0.0002,3959.5,3959.4,12.75815347]
[1761311005097,0.0002,3959.5,3959.4,7.57215347]
[1761311005292,0.0002,3959.5,3959.4,13.42966525]
[1761311005710,0.0002,3959.5,3959.4,12.75815347]
[1761311006295,0.0002,3959.5,3959.4,13.42925743]
[1761311006477,0.0002,3959.5,3959.4,8.24326981]
[1761311006675,0.0002,3959.5,3959.4,13.42926981]
[1761311007196,0.0002,3959.5,3959.4,8.24326981]
[1761311007405,0.0002,3959.5,3959.4,14.68415347]
[1761311008803,0.0002,3959.5,3959.4,10.52847347]
[1761311009017,0.0002,3959.5,3959.4,13.69407347]
[1761311009224,0.0002,3959.5,3959.4,12.13887347]
[1761311009516,0.0002,3959.5,3959.4,7.49923519]
[1761311009718,0.0002,3959.5,3959.4,5.94403519]
[1761311010016,0.0002,3959.5,3959.4,7.49923519]
[1761311010520,0.0002,3959.5,3959.4,7.37283519]
[1761311011379,0.0002,3959.5,3959.4,7.85603519]
[1761311011578,0.0002,3959.5,3959.4,9.85973982]
[1761311012405,0.0002,3959.5,3959.4,9.50293982]
[1761311012571,0.0002,3959.5,3959.4,6.21093982]
[1761311012777,0.0002,3959.5,3959.4,7.49823519]
[1761311014333,0.0002,3959.5,3959.4,4.20723519]
[1761311014527,0.0002,3959.5,3959.4,7.49823519]
[1761311016315,0.2251,3959.9,3959.8,2.52538006]
[1761311016638,0.0004,3959.9,3959.8,5.81538006]
[1761311017005,0.0004,3959.9,3959.8,2.52538006]
[1761311017206,0.0004,3959.9,3959.8,5.81538006]
[1761311018835,0.0004,3959.9,3959.8,8.20466383]
[1761311020148,0.0004,3959.9,3959.8,9.23258017]
[1761311020341,0.0004,3959.9,3959.8,8.56146383]
[1761311020639,0.0004,3959.9,3959.8,9.10455308]
[1761311021256,0.0004,3959.9,3959.8,8.20666383]
[1761311021823,0.0004,3959.9,3959.8,7.37258006]
[1761311022020,0.0004,3959.9,3959.8,8.04676638]
[1761311023430,0.0004,3959.9,3959.8,7.37158006]
[1761311024335,0.0004,3959.9,3959.8,4.08258006]
[1761311024514,0.0004,3959.9,3959.8,7.37158006]
[1761311025128,0.0004,3959.9,3959.8,4.08258006]
[1761311025333,0.0004,3959.9,3959.8,7.37158006]
[1761311026841,0.0004,3959.9,3959.8,9.48598878]
[1761311027049,0.0004,3959.9,3959.8,9.16760246]
[1761311028253,0.0004,3959.9,3959.8,12.98760246]
[1761311028968,0.0004,3959.9,3959.8,13.11400246]
[1761311030723,0.0004,3959.9,3959.8,13.62088246]
[1761311030925,0.0004,3959.9,3959.8,19.76953587]
[1761311031157,0.0004,3959.9,3959.8,19.73022327]
[1761311031735,0.1264,3961.7,3961.6,2.52423263]
[1761311031935,0.1264,3961.7,3961.6,5.81123263]
[1761311033147,0.441,3962.0,3961.9,2.52404149]
[1761311033467,0.441,3962.0,3961.9,5.81104149]
[1761311033827,0.2174,3962.2,3962.1,2.52391408]
[1761311034464,0.6584,3962.2,3962.1,2.52391408]
[1761311035968,0.2174,3962.2,3962.1,2.52391408]
[1761311036583,0.6657,3962.5,3962.3,2.52377219]
[1761311036783,0.2247,3962.5,3962.4,3.286]
[1761311037341,0.6835,3962.5,3962.4,3.286]
[1761311038786,0.6835,3962.5,3961.4,1.5552]
[1761311038787,1.00429836,3962.5,3961.4,1.5552]
[1761311038989,0.4588,3962.4,3961.9,2.52402759]
[1761311039193,0.4588,3962.4,3962.0,3.285]
[1761311039497,0.4588,3962.4,3962.1,3.285]
[1761311039855,0.4588,3962.4,3962.1,5.80889427]
[1761311040393,0.458,3962.4,3962.1,3.285]
[1761311040567,0.7787237,3962.4,3962.1,3.285]
[1761311040962,0.3207237,3962.4,3962.1,3.285]
[1761311041166,0.3207237,3962.4,3962.0,2.52396418]
[1761311041499,0.3207237,3962.4,3962.2,3.285]
[1761311041647,0.2247,3962.5,3962.3,3.31023786]
[1761311041847,0.2247,3962.5,3962.4,5.80872299]
[1761311042260,0.001,3962.6,3962.5,2.5236593]
[1761311042774,0.001,3962.6,3962.5,2.54889589]
[1761311042978,0.001,3962.6,3962.5,2.5236593]
[1761311044777,0.001,3962.6,3962.5,5.29494032]
[1761311044980,0.001,3962.6,3962.5,5.39610373]
[1761311045152,0.001,3962.6,3962.5,5.03850373]
[1761311045694,0.001,3962.6,3962.5,6.45176044]
[1761311045979,0.001,3962.6,3962.5,6.07150952]
[1761311046364,0.001,3962.6,3962.5,6.38491458]
[1761311046567,0.001,3963.1,3962.9,2.52340457]
[1761311046886,0.0002,3963.7,3963.6,3.02983892]
[1761311047200,1e-08,3964.1,3964.0,4.58478433]
[1761311047351,1e-08,3964.1,3964.0,8.52031012]
[1761311048279,1e-08,3964.1,3964.0,9.18738238]
[1761311048467,1e-08,3964.1,3964.0,10.44766441]
[1761311049288,0.4421,3965.8,3964.0,10.44766441]
[1761311049289,0.6796,3966.2,3964.6,0.50688]
[1761311049489,0.4421,3965.8,3964.7,4.10268151]
[1761311049650,0.4421,3965.8,3964.7,7.38468151]
[1761311049847,0.4421,3965.5,3964.7,7.76450495]
[1761311050084,0.2375,3965.9,3964.7,8.62898495]
[1761311050482,0.6796,3965.9,3964.7,8.62898495]
[1761311050898,0.6796,3965.9,3964.7,7.76450495]
[1761311050899,0.4421,3965.6,3964.7,7.76450495]
[1761311051659,0.4421,3965.6,3964.7,8.12210495]
[1761311051912,0.2375,3965.9,3964.7,7.76350495]
[1761311052061,0.2375,3966.2,3964.7,7.76350495]
[1761311052062,0.2375,3966.2,3964.7,8.62798495]
[1761311052413,0.2375,3966.2,3964.7,8.92291074]
[1761311053595,0.1915,3966.2,3966.1,2.52136859]
[1761311053794,0.1915,3966.2,3966.1,5.80236859]
[1761311054091,0.2375,3966.4,3966.3,2.52124145]
[1761311054278,0.2375,3966.4,3966.3,5.80224145]
[1761311054479,0.4421,3966.9,3966.8,2.52092366]
[1761311054659,0.4421,3966.9,3966.8,5.80092366]
[1761311054862,0.4421,3966.9,3966.8,3.28]
[1761311055063,0.4421,3966.9,3966.8,5.80092366]
[1761311055689,0.5685,3966.9,3966.8,5.80092366]
[1761311056192,0.2375,3967.0,3966.8,5.80092366]
[1761311056389,0.2375,3967.0,3966.9,2.52086011]
[1761311056961,0.6796,3967.0,3966.9,2.52086011]
[1761311059892,0.6796,3967.0,3966.9,3.279]
[1761311060393,0.4423,3967.6,3967.0,2.52074982]
[1761311060597,0.0002,3967.6,3967.2,2.52061068]
[1761311060824,0.4421,3967.4,3967.3,3.278]
[1761311061812,0.001,3967.0,3966.1,1.5552]
[1761311062119,0.001,3967.0,3966.8,2.52092033]
[1761311062414,0.001,3967.0,3966.9,3.278]
[1761311063018,0.4431,3967.0,3966.9,5.79886011]
[1761311063389,0.4431,3967.0,3966.9,5.79786011]
[1761311063589,0.4431,3967.0,3966.9,3.277]
[1761311064224,0.4423,3967.0,3966.9,3.277]
[1761311066423,0.5687,3967.0,3965.4,0.1792]
[1761311066625,0.1264,3966.5,3966.3,2.5212378]
[1761311066826,0.1264,3966.5,3966.4,7.35237789]
[1761311066998,0.0002,3967.0,3966.9,2.52086011]
[1761311067320,0.0002,3967.0,3966.9,5.79686011]
[1761311069739,0.0002,3967.0,3966.9,7.35206011]
[1761311069942,0.0002,3967.0,3966.9,8.26254011]
[1761311070264,0.0002,3967.0,3966.9,9.34088805]
[1761311073220,0.0002,3967.0,3966.9,8.93728805]
[1761311073428,0.0002,3967.0,3966.9,8.43040805]
[1761311073588,0.0002,3967.0,3966.9,9.34088805]
[1761311073793,0.0002,3967.0,3966.9,10.0058571]
[1761311074211,0.0002,3967.0,3966.9,9.33988805]